[Event "Elitserien 2019/2020, round 1-3"]
[Site "Uppsala University, Gamla torget, Uppsala, Sweden"]
[Date "2019.10.19"]
[Round "2.15"]
[White "Andersson, Bjorn"]
[Black "Bergstrom, Peter"]
[Result "0-1"]
[TimeControl "90 minutes for 40 moves + 30 minutes for the rest of the game + 30 seconds per move from move one."]
[WhiteTitle "FM"]
[BlackTitle "FM"]
[WhiteFideId "1702114"]
[BlackFideId "1702467"]
[WhiteElo "2162"]
[BlackElo "2306"]

1. c4 {[%clk 01:30:59]} {[%emt 00:17:06]} c6 {[%clk 01:30:53]} {[%emt
00:00:08]} 2. g3 {[%clk 01:31:21]} {[%emt 00:00:08]} d5 {[%clk 01:31:08]}
{[%emt 00:00:15]} 3. cxd5 {[%clk 01:31:13]} {[%emt 00:00:37]} cxd5 {[%clk
01:31:32]} {[%emt 00:00:06]} 4. Bg2 {[%clk 01:31:38]} {[%emt 00:00:05]} Nf6
{[%clk 01:31:19]} {[%emt 00:00:43]} 5. d3 {[%clk 01:31:57]} {[%emt 00:00:11]}
Nc6 {[%clk 01:29:50]} {[%emt 00:01:59]} 6. Nc3 {[%clk 01:29:38]} {[%emt
00:02:48]} e6 {[%clk 01:22:22]} {[%emt 00:07:59]} 7. Bd2 {[%clk 01:26:59]}
{[%emt 00:03:09]} Be7 {[%clk 01:22:28]} {[%emt 00:00:24]} 8. Nf3 {[%clk
01:27:04]} {[%emt 00:00:25]} O-O {[%clk 01:17:42]} {[%emt 00:05:15]} 9. O-O
{[%clk 01:27:23]} {[%emt 00:00:12]} b6 {[%clk 01:13:17]} {[%emt 00:04:55]} 10.
Rc1 {[%clk 01:23:50]} {[%emt 00:04:03]} Bb7 {[%clk 01:13:32]} {[%emt 00:00:14]}
11. d4 {[%clk 01:23:11]} {[%emt 00:01:10]} Ne4 {[%clk 01:09:40]} {[%emt
00:04:22]} 12. Be3 {[%clk 01:17:38]} {[%emt 00:06:04]} f5 {[%clk 01:07:10]}
{[%emt 00:02:59]} 13. Qa4 {[%clk 01:08:19]} {[%emt 00:09:48]} a6 {[%clk
00:41:06]} {[%emt 00:26:34]} 14. Bf4 {[%clk 01:02:02]} {[%emt 00:06:47]} Rc8
{[%clk 00:37:48]} {[%emt 00:03:48]} 15. Ne5 {[%clk 00:57:02]} {[%emt 00:05:31]}
Nxe5 {[%clk 00:36:10]} {[%emt 00:02:08]} 16. Bxe5 {[%clk 00:56:13]} {[%emt
00:01:19]} Nd2 {[%clk 00:34:18]} {[%emt 00:02:22]} 17. Rfd1 {[%clk 00:50:03]}
{[%emt 00:06:41]} Nc4 {[%clk 00:34:36]} {[%emt 00:00:10]} 18. Qb3 {[%clk
00:50:05]} {[%emt 00:00:29]} Nxe5 {[%clk 00:27:23]} {[%emt 00:07:43]} 19. dxe5
{[%clk 00:50:19]} {[%emt 00:00:17]} b5 {[%clk 00:22:41]} {[%emt 00:05:11]} 20.
e3 {[%clk 00:49:01]} {[%emt 00:01:48]} Rc4 {[%clk 00:15:00]} {[%emt 00:08:11]}
21. Ne2 {[%clk 00:43:03]} {[%emt 00:06:27]} Qb8 {[%clk 00:14:58]} {[%emt
00:00:33]} 22. f4 {[%clk 00:41:56]} {[%emt 00:01:37]} Rfc8 {[%clk 00:14:35]}
{[%emt 00:00:53]} 23. Qd3 {[%clk 00:39:46]} {[%emt 00:02:40]} Rxc1 {[%clk
00:12:03]} {[%emt 00:03:03]} 24. Rxc1 {[%clk 00:37:08]} {[%emt 00:03:07]} Rxc1+
{[%clk 00:11:09]} {[%emt 00:01:24]} 25. Nxc1 {[%clk 00:36:59]} {[%emt
00:00:40]} Qc7 {[%clk 00:11:35]} {[%emt 00:00:04]} 26. Qd2 {[%clk 00:36:36]}
{[%emt 00:00:53]} a5 {[%clk 00:08:48]} {[%emt 00:03:18]} 27. Nb3 {[%clk
00:36:24]} {[%emt 00:00:41]} b4 {[%clk 00:08:39]} {[%emt 00:00:39]} 28. Nd4
{[%clk 00:33:54]} {[%emt 00:02:59]} Kf7 {[%clk 00:07:52]} {[%emt 00:01:17]} 29.
h3 {[%clk 00:32:27]} {[%emt 00:01:58]} Bc5 {[%clk 00:04:52]} {[%emt 00:03:31]}
30. Nf3 {[%clk 00:31:16]} {[%emt 00:01:40]} h6 {[%clk 00:04:39]} {[%emt
00:00:43]} 31. g4 {[%clk 00:31:07]} {[%emt 00:00:39]} fxg4 {[%clk 00:03:46]}
{[%emt 00:01:23]} 32. hxg4 {[%clk 00:31:27]} {[%emt 00:00:10]} Bb6 {[%clk
00:04:06]} {[%emt 00:00:10]} 33. Bf1 {[%clk 00:29:35]} {[%emt 00:02:22]} Qc8
{[%clk 00:02:30]} {[%emt 00:02:07]} 34. Kf2 {[%clk 00:18:49]} {[%emt 00:11:15]}
Ba6 {[%clk 00:01:45]} {[%emt 00:01:15]} 35. Bh3 {[%clk 00:10:26]} {[%emt
00:08:53]} Qc4 {[%clk 00:01:32]} {[%emt 00:00:43]} 36. f5 {[%clk 00:10:49]}
{[%emt 00:00:06]} Qd3 {[%clk 00:01:15]} {[%emt 00:00:47]} 37. Qxd3 {[%clk
00:08:11]} {[%emt 00:03:08]} Bxd3 {[%clk 00:01:45]} 38. Nd4 {[%clk 00:08:09]}
{[%emt 00:00:32]} Bb1 {[%clk 00:01:20]} {[%emt 00:00:55]} 39. Nxe6 {[%clk
00:03:52]} {[%emt 00:04:48]} Bxa2 {[%clk 00:01:32]} {[%emt 00:00:17]} 40. Bg2
{[%clk 00:03:31]} {[%emt 00:00:51]} a4 {[%clk 00:01:29]} {[%emt 00:00:33]} 41.
Nf4 {[%clk 00:28:53]} {[%emt 00:05:08]} a3 {[%clk 00:25:37]} {[%emt 00:06:22]}
42. bxa3 {[%clk 00:26:39]} {[%emt 00:02:43]} bxa3 {[%clk 00:26:05]} {[%emt
00:00:02]} 43. Nxd5 {[%clk 00:22:40]} {[%emt 00:04:30]} Ba5 {[%clk 00:14:16]}
{[%emt 00:12:19]} 44. e6+ {[%clk 00:17:57]} {[%emt 00:05:13]} Ke8 {[%clk
00:13:53]} {[%emt 00:00:51]} 45. Nf4 {[%clk 00:18:05]} {[%emt 00:00:23]} Bxe6
{[%clk 00:12:15]} {[%emt 00:02:09]} 46. fxe6 {[%clk 00:15:16]} {[%emt
00:03:19]} a2 {[%clk 00:12:40]} {[%emt 00:00:05]} 47. Bc6+ {[%clk 00:12:06]}
{[%emt 00:03:40]} Ke7 {[%clk 00:12:45]} {[%emt 00:00:25]} 48. Bd5 {[%clk
00:11:44]} {[%emt 00:00:51]} a1=Q {[%clk 00:13:05]} {[%emt 00:00:10]} 49. Kf3
{[%clk 00:05:42]} {[%emt 00:06:33]} Kd6 {[%clk 00:11:24]} {[%emt 00:02:11]} 50.
Bc4 {[%clk 00:03:38]} {[%emt 00:02:34]} Bd8 {[%clk 00:11:34]} {[%emt 00:00:20]}
51. Nd3 {[%clk 00:03:25]} {[%emt 00:00:42]} Bg5 {[%clk 00:11:19]} {[%emt
00:00:46]} 52. Nf2 {[%clk 00:03:11]} {[%emt 00:00:44]} Ke7 {[%clk 00:11:26]}
0-1

[Event "Elitserien 2019/2020, round 1-3"]
[Site "Uppsala University, Gamla torget, Uppsala, Sweden"]
[Date "2019.10.19"]
[Round "2.16"]
[White "Jonsson, Mikael"]
[Black "Fraenkel, Mikael"]
[Result "1/2-1/2"]
[TimeControl "90 minutes for 40 moves + 30 minutes for the rest of the game + 30 seconds per move from move one."]
[WhiteFideId "1702041"]
[BlackFideId "1706985"]
[WhiteElo "2252"]
[BlackElo "2040"]

1. d4 {[%clk 01:30:54]} {[%emt 00:00:05]} Nf6 {[%clk 01:28:38]} {[%emt
00:02:24]} 2. c4 {[%clk 01:31:03]} {[%emt 00:00:20]} g6 {[%clk 01:29:00]}
{[%emt 00:00:07]} 3. Nc3 {[%clk 01:30:58]} {[%emt 00:00:35]} Bg7 {[%clk
01:29:21]} {[%emt 00:00:10]} 4. Nf3 {[%clk 01:28:07]} {[%emt 00:03:19]} O-O
{[%clk 01:29:38]} {[%emt 00:00:14]} 5. g3 {[%clk 01:28:22]} {[%emt 00:00:15]}
d6 {[%clk 01:27:33]} {[%emt 00:02:37]} 6. Bg2 {[%clk 01:28:36]} {[%emt
00:00:14]} Nbd7 {[%clk 01:25:03]} {[%emt 00:03:01]} 7. O-O {[%clk 01:28:33]}
{[%emt 00:00:32]} c5 {[%clk 01:24:42]} {[%emt 00:00:52]} 8. d5 {[%clk
01:22:46]} {[%emt 00:06:17]} Nb6 {[%clk 01:21:07]} {[%emt 00:04:05]} 9. Nd2
{[%clk 01:21:05]} {[%emt 00:02:10]} e5 {[%clk 01:19:29]} {[%emt 00:02:09]} 10.
a3 {[%clk 01:15:31]} {[%emt 00:06:04]} Bd7 {[%clk 01:15:36]} {[%emt 00:04:23]}
11. h3 {[%clk 00:54:32]} {[%emt 00:21:29]} Nh5 {[%clk 01:09:47]} {[%emt
00:06:19]} 12. e4 {[%clk 00:51:31]} {[%emt 00:03:30]} Qe8 {[%clk 01:08:29]}
{[%emt 00:01:49]} 13. Kh2 {[%clk 00:42:03]} {[%emt 00:09:57]} f5 {[%clk
01:07:23]} {[%emt 00:01:37]} 14. exf5 {[%clk 00:42:01]} {[%emt 00:00:33]} gxf5
{[%clk 01:07:00]} {[%emt 00:00:52]} 15. Nb5 {[%clk 00:41:08]} {[%emt 00:01:23]}
Bxb5 {[%clk 01:02:36]} {[%emt 00:04:54]} 16. cxb5 {[%clk 00:41:32]} {[%emt
00:00:06]} Nf6 {[%clk 00:34:06]} {[%emt 00:29:00]} 17. Qb3 {[%clk 00:38:37]}
{[%emt 00:03:25]} Rd8 {[%clk 00:33:03]} {[%emt 00:01:32]} 18. Nc4 {[%clk
00:36:33]} {[%emt 00:02:34]} Nc8 {[%clk 00:24:18]} {[%emt 00:09:16]} 19. f4
{[%clk 00:16:05]} {[%emt 00:20:58]} e4 {[%clk 00:21:36]} {[%emt 00:03:13]} 20.
Rd1 {[%clk 00:14:51]} {[%emt 00:01:42]} Kh8 {[%clk 00:20:54]} {[%emt 00:01:13]}
21. Ne3 {[%clk 00:04:53]} {[%emt 00:10:28]} Qg6 {[%clk 00:20:22]} {[%emt
00:01:01]} 22. Bd2 {[%clk 00:04:30]} {[%emt 00:00:54]} Nh5 {[%clk 00:19:05]}
{[%emt 00:01:46]} 23. Be1 {[%clk 00:03:48]} {[%emt 00:01:13]} Rg8 {[%clk
00:17:39]} {[%emt 00:01:56]} 24. Bf2 {[%clk 00:03:08]} {[%emt 00:01:10]} Bh6
{[%clk 00:14:02]} {[%emt 00:04:07]} 25. Qc3+ {[%clk 00:02:56]} {[%emt
00:00:42]} Rg7 {[%clk 00:14:11]} {[%emt 00:00:21]} 26. Rg1 {[%clk 00:01:49]}
{[%emt 00:01:36]} Nxg3 {[%clk 00:09:27]} {[%emt 00:05:14]} 27. Qxg7+ {[%clk
00:00:51]} {[%emt 00:01:29]} Qxg7 {[%clk 00:08:20]} {[%emt 00:01:36]} 28. Bxg3
{[%clk 00:01:15]} {[%emt 00:00:07]} Qxb2 {[%clk 00:08:23]} {[%emt 00:00:28]} 29.
Nxf5 {[%clk 00:01:30]} {[%emt 00:00:14]} Bg7 {[%clk 00:05:07]} {[%emt
00:03:45]} 30. Rab1 {[%clk 00:00:43]} {[%emt 00:01:19]} Qxa3 {[%clk 00:04:00]}
{[%emt 00:01:36]} 31. Nxg7 {[%clk 00:00:53]} {[%emt 00:00:20]} Kxg7 {[%clk
00:04:22]} {[%emt 00:00:08]} 32. Bxe4 {[%clk 00:00:43]} {[%emt 00:00:40]} Kh8
{[%clk 00:03:25]} {[%emt 00:01:26]} 33. Bh4 {[%clk 00:00:33]} {[%emt 00:00:41]}
Rf8 {[%clk 00:03:41]} {[%emt 00:00:14]} 34. Rg2 {[%clk 00:00:45]} {[%emt
00:00:18]} Qe3 {[%clk 00:02:02]} {[%emt 00:02:09]} 35. Re1 {[%clk 00:00:44]}
{[%emt 00:00:31]} Qxf4+ {[%clk 00:01:45]} {[%emt 00:00:47]} 36. Bg3 {[%clk
00:01:08]} {[%emt 00:00:05]} Qh6 {[%clk 00:01:25]} {[%emt 00:00:51]} 37. Ree2
{[%clk 00:00:45]} {[%emt 00:00:53]} Ne7 {[%clk 00:01:36]} {[%emt 00:00:19]} 38.
Be1 {[%clk 00:01:08]} {[%emt 00:00:08]} Qf4+ {[%clk 00:00:43]} {[%emt
00:01:22]} 39. Rg3 {[%clk 00:01:34]} {[%emt 00:00:04]} Ng6 {[%clk 00:00:50]}
{[%emt 00:00:23]} 40. Bxg6 {[%clk 00:01:58]} {[%emt 00:00:06]} hxg6 {[%clk
00:01:01]} {[%emt 00:00:19]} 41. Bc3+ {[%clk 00:00:34]} {[%emt 00:01:53]} Kh7
{[%clk 00:24:55]} {[%emt 00:06:36]} 42. Re7+ {[%clk 00:26:48]} {[%emt
00:04:16]} Rf7 {[%clk 00:14:50]} {[%emt 00:10:36]} 43. Re8 {[%clk 00:26:48]}
{[%emt 00:00:30]} g5 {[%clk 00:10:13]} {[%emt 00:05:07]} 44. Rh8+ {[%clk
00:24:56]} {[%emt 00:02:21]} Kg6 {[%clk 00:10:18]} {[%emt 00:00:26]} 45. Rg8+
{[%clk 00:25:12]} {[%emt 00:00:13]} Kh6 {[%clk 00:09:38]} {[%emt 00:01:10]} 46.
h4 {[%clk 00:18:05]} {[%emt 00:07:37]} Qf2+ {[%clk 00:00:41]} {[%emt 00:09:28]}
47. Rg2 {[%clk 00:18:20]} {[%emt 00:00:14]} Qf4+ {[%clk 00:01:10]} {[%emt
00:00:02]} 48. Rg3 {[%clk 00:18:41]} {[%emt 00:00:09]} Qf2+ {[%clk 00:00:36]}
{[%emt 00:01:04]} 49. Rg2 {[%clk 00:19:05]} {[%emt 00:00:05]} Qf4+ {[%clk
00:00:36]} {[%emt 00:00:31]} 1/2-1/2

[Event "Elitserien 2019/2020, round 1-3"]
[Site "Uppsala University, Gamla torget, Uppsala, Sweden"]
[Date "2019.10.19"]
[Round "2.17"]
[White "Sagit, Rauan"]
[Black "Heberla, Bartlomiej"]
[Result "0-1"]
[TimeControl "90 minutes for 40 moves + 30 minutes for the rest of the game + 30 seconds per move from move one."]
[WhiteTitle "IM"]
[BlackTitle "GM"]
[WhiteFideId "1708376"]
[BlackFideId "1115120"]
[WhiteElo "2443"]
[BlackElo "2552"]

1. Nf3 {[%clk 01:30:53]} {[%emt 00:00:05]} g6 {[%clk 01:29:30]} {[%emt
00:01:31]} 2. d4 {[%clk 01:26:55]} {[%emt 00:04:27]} Bg7 {[%clk 01:29:16]}
{[%emt 00:00:39]} 3. g3 {[%clk 01:25:24]} {[%emt 00:02:06]} c5 {[%clk
01:27:56]} {[%emt 00:01:50]} 4. dxc5 {[%clk 01:21:45]} {[%emt 00:04:09]} Qa5+
{[%clk 01:27:56]} {[%emt 00:00:30]} 5. Nbd2 {[%clk 01:20:00]} {[%emt 00:02:15]}
Qxc5 {[%clk 01:28:11]} {[%emt 00:00:15]} 6. Bg2 {[%clk 01:19:35]} {[%emt
00:00:55]} Nf6 {[%clk 01:28:30]} {[%emt 00:00:12]} 7. O-O {[%clk 01:19:20]}
{[%emt 00:00:43]} O-O {[%clk 01:28:47]} {[%emt 00:00:15]} 8. Nb3 {[%clk
01:17:07]} {[%emt 00:02:43]} Qc7 {[%clk 01:25:22]} {[%emt 00:03:56]} 9. c3
{[%clk 01:13:30]} {[%emt 00:04:05]} Nc6 {[%clk 01:20:52]} {[%emt 00:05:01]} 10.
Nbd4 {[%clk 01:08:19]} {[%emt 00:05:38]} d6 {[%clk 01:19:27]} {[%emt 00:01:58]}
11. Nc2 {[%clk 01:00:41]} {[%emt 00:08:08]} Rd8 {[%clk 01:12:16]} {[%emt
00:07:41]} 12. Nfd4 {[%clk 00:59:22]} {[%emt 00:01:45]} a6 {[%clk 01:00:29]}
{[%emt 00:12:20]} 13. Bg5 {[%clk 00:55:30]} {[%emt 00:04:20]} h6 {[%clk
00:59:50]} {[%emt 00:01:11]} 14. Bd2 {[%clk 00:55:11]} {[%emt 00:00:47]} Na5
{[%clk 00:56:07]} {[%emt 00:04:15]} 15. Na3 {[%clk 00:47:43]} {[%emt 00:07:57]}
e5 {[%clk 00:47:08]} {[%emt 00:09:30]} 16. Nb3 {[%clk 00:47:06]} {[%emt
00:01:05]} Nxb3 {[%clk 00:45:16]} {[%emt 00:02:23]} 17. axb3 {[%clk 00:44:43]}
{[%emt 00:02:53]} d5 {[%clk 00:45:32]} {[%emt 00:00:15]} 18. Qc1 {[%clk
00:42:53]} {[%emt 00:02:20]} Kh7 {[%clk 00:42:46]} {[%emt 00:03:17]} 19. c4
{[%clk 00:42:02]} {[%emt 00:01:21]} d4 {[%clk 00:34:55]} {[%emt 00:08:22]} 20.
c5 {[%clk 00:41:19]} {[%emt 00:01:12]} Bg4 {[%clk 00:34:59]} {[%emt 00:00:26]}
21. Re1 {[%clk 00:40:21]} {[%emt 00:01:29]} Rab8 {[%clk 00:33:21]} {[%emt
00:02:08]} 22. b4 {[%clk 00:37:37]} {[%emt 00:03:13]} Be6 {[%clk 00:30:25]}
{[%emt 00:03:26]} 23. b5 {[%clk 00:33:56]} {[%emt 00:04:12]} Bd5 {[%clk
00:29:25]} {[%emt 00:01:30]} 24. f3 {[%clk 00:27:22]} {[%emt 00:07:04]} axb5
{[%clk 00:26:03]} {[%emt 00:03:53]} 25. Nxb5 {[%clk 00:27:07]} {[%emt
00:00:44]} Qc6 {[%clk 00:25:48]} {[%emt 00:00:44]} 26. Na7 {[%clk 00:18:42]}
{[%emt 00:08:57]} Qe6 {[%clk 00:25:41]} {[%emt 00:00:37]} 27. Nb5 {[%clk
00:16:08]} {[%emt 00:03:03]} Qc6 {[%clk 00:26:03]} {[%emt 00:00:08]} 28. Na7
{[%clk 00:15:59]} {[%emt 00:00:39]} Qe6 {[%clk 00:26:31]} {[%emt 00:00:02]} 29.
b4 {[%clk 00:12:29]} {[%emt 00:03:59]} e4 {[%clk 00:23:53]} {[%emt 00:03:09]}
30. Bf4 {[%clk 00:12:18]} {[%emt 00:00:41]} Ra8 {[%clk 00:22:56]} {[%emt
00:01:26]} 31. Nb5 {[%clk 00:12:17]} {[%emt 00:00:30]} Ne8 {[%clk 00:22:58]}
{[%emt 00:00:29]} 32. Rxa8 {[%clk 00:11:42]} {[%emt 00:01:05]} Rxa8 {[%clk
00:23:26]} {[%emt 00:00:02]} 33. Qd1 {[%clk 00:10:38]} {[%emt 00:01:34]} Bc6
{[%clk 00:14:14]} {[%emt 00:09:42]} 34. Nxd4 {[%clk 00:09:00]} {[%emt
00:02:08]} Bxd4+ {[%clk 00:14:37]} {[%emt 00:00:07]} 35. Qxd4 {[%clk 00:09:21]}
{[%emt 00:00:08]} exf3 {[%clk 00:15:04]} {[%emt 00:00:03]} 36. Bf1 {[%clk
00:09:26]} {[%emt 00:00:25]} Nf6 {[%clk 00:15:13]} {[%emt 00:00:20]} 37. Bd2
{[%clk 00:05:43]} {[%emt 00:04:13]} Rd8 {[%clk 00:15:18]} {[%emt 00:00:26]} 38.
Qxd8 {[%clk 00:00:54]} {[%emt 00:05:19]} f2+ {[%clk 00:15:28]} {[%emt
00:00:19]} 39. Kxf2 {[%clk 00:01:19]} {[%emt 00:00:05]} Ng4+ {[%clk 00:15:50]}
{[%emt 00:00:08]} 40. Kg1 {[%clk 00:01:35]} {[%emt 00:00:15]} Qe4 {[%clk
00:16:15]} {[%emt 00:00:05]} 0-1

[Event "Elitserien 2019/2020, round 1-3"]
[Site "Uppsala University, Gamla torget, Uppsala, Sweden"]
[Date "2019.10.19"]
[Round "2.18"]
[White "Gajic, Mladen"]
[Black "Grigorov, Grigor"]
[Result "0-1"]
[TimeControl "90 minutes for 40 moves + 30 minutes for the rest of the game + 30 seconds per move from move one."]
[WhiteTitle "FM"]
[BlackTitle "GM"]
[WhiteFideId "1709178"]
[BlackFideId "2907313"]
[WhiteElo "2303"]
[BlackElo "2504"]

1. d4 {[%clk 01:30:51]} {[%emt 00:00:08]} Nf6 {[%clk 01:27:44]} {[%emt
00:03:16]} 2. Bg5 {[%clk 01:27:44]} {[%emt 00:03:37]} e6 {[%clk 01:27:57]}
{[%emt 00:00:17]} 3. Nd2 {[%clk 01:27:48]} {[%emt 00:00:28]} c5 {[%clk
01:27:01]} {[%emt 00:01:25]} 4. e3 {[%clk 01:27:10]} {[%emt 00:01:09]} d5
{[%clk 01:27:07]} {[%emt 00:00:23]} 5. Ngf3 {[%clk 01:26:02]} {[%emt 00:01:38]}
Nbd7 {[%clk 01:24:28]} {[%emt 00:03:07]} 6. Bd3 {[%clk 01:21:26]} {[%emt
00:05:07]} Bd6 {[%clk 01:18:26]} {[%emt 00:06:32]} 7. O-O {[%clk 01:17:57]}
{[%emt 00:03:58]} O-O {[%clk 01:18:03]} {[%emt 00:00:53]} 8. Re1 {[%clk
01:13:41]} {[%emt 00:04:47]} e5 {[%clk 01:01:06]} {[%emt 00:17:27]} 9. e4
{[%clk 01:08:16]} {[%emt 00:05:56]} cxd4 {[%clk 01:01:03]} {[%emt 00:00:33]} 10.
exd5 {[%clk 01:08:31]} {[%emt 00:00:15]} Qc7 {[%clk 01:00:13]} {[%emt
00:01:19]} 11. Bxf6 {[%clk 00:48:37]} {[%emt 00:20:24]} Nxf6 {[%clk 01:00:24]}
{[%emt 00:00:18]} 12. c3 {[%clk 00:30:19]} {[%emt 00:18:49]} dxc3 {[%clk
01:00:08]} {[%emt 00:00:45]} 13. bxc3 {[%clk 00:30:39]} {[%emt 00:00:11]} Bg4
{[%clk 00:42:55]} {[%emt 00:17:43]} 14. h3 {[%clk 00:28:15]} {[%emt 00:02:54]}
Bh5 {[%clk 00:42:24]} {[%emt 00:01:00]} 15. Qb3 {[%clk 00:27:49]} {[%emt
00:00:57]} Bxf3 {[%clk 00:32:12]} {[%emt 00:10:41]} 16. Nxf3 {[%clk 00:27:58]}
{[%emt 00:00:21]} Nd7 {[%clk 00:30:34]} {[%emt 00:02:08]} 17. Qc2 {[%clk
00:23:07]} {[%emt 00:05:21]} g6 {[%clk 00:30:48]} {[%emt 00:00:16]} 18. Rad1
{[%clk 00:13:34]} {[%emt 00:10:04]} Rac8 {[%clk 00:30:32]} {[%emt 00:00:46]} 19.
Ng5 {[%clk 00:11:30]} {[%emt 00:02:33]} Nf6 {[%clk 00:28:31]} {[%emt 00:02:32]}
20. Qb3 {[%clk 00:08:40]} {[%emt 00:03:20]} Kg7 {[%clk 00:16:40]} {[%emt
00:12:21]} 21. Bf1 {[%clk 00:08:58]} {[%emt 00:00:12]} b6 {[%clk 00:13:37]}
{[%emt 00:03:33]} 22. Ba6 {[%clk 00:09:18]} {[%emt 00:00:11]} Rcd8 {[%clk
00:13:46]} {[%emt 00:00:21]} 23. Bb5 {[%clk 00:09:23]} {[%emt 00:00:25]} h6
{[%clk 00:13:50]} {[%emt 00:00:25]} 24. Ne4 {[%clk 00:08:30]} {[%emt 00:01:23]}
Nxe4 {[%clk 00:13:58]} {[%emt 00:00:22]} 25. Rxe4 {[%clk 00:09:00]} f5 {[%clk
00:14:19]} {[%emt 00:00:09]} 26. Rc4 {[%clk 00:09:04]} {[%emt 00:00:26]} Bc5
{[%clk 00:14:35]} {[%emt 00:00:14]} 27. Bc6 {[%clk 00:07:24]} {[%emt 00:02:11]}
e4 {[%clk 00:14:15]} {[%emt 00:00:49]} 28. Re1 {[%clk 00:06:40]} {[%emt
00:01:15]} Rf7 {[%clk 00:14:07]} {[%emt 00:00:38]} 29. a4 {[%clk 00:05:57]}
{[%emt 00:01:14]} Qf4 {[%clk 00:12:13]} {[%emt 00:02:23]} 30. Qc2 {[%clk
00:05:52]} {[%emt 00:00:35]} h5 {[%clk 00:12:19]} {[%emt 00:00:23]} 31. a5
{[%clk 00:04:34]} {[%emt 00:01:49]} h4 {[%clk 00:12:40]} {[%emt 00:00:08]} 32.
Rxc5 {[%clk 00:01:35]} {[%emt 00:03:29]} bxc5 {[%clk 00:13:03]} {[%emt
00:00:07]} 33. a6 {[%clk 00:01:53]} {[%emt 00:00:13]} Re7 {[%clk 00:12:53]}
{[%emt 00:00:39]} 34. c4 {[%clk 00:02:13]} {[%emt 00:00:11]} Qe5 {[%clk
00:11:18]} {[%emt 00:02:04]} 35. Qb3 {[%clk 00:01:59]} {[%emt 00:00:46]} f4
{[%clk 00:10:35]} {[%emt 00:01:12]} 36. Rb1 {[%clk 00:00:42]} {[%emt 00:01:47]}
e3 {[%clk 00:10:38]} {[%emt 00:00:27]} 37. Qb2 {[%clk 00:00:33]} {[%emt
00:00:40]} Qxb2 {[%clk 00:10:58]} {[%emt 00:00:09]} 0-1